Cogmind - Beta 12 @@@ ROGUE MODE // 2023.12.17 @ 00:43:32 Player: puppuppit Result: Destroyed by S-10 Pest with Light Assault Rifle Performance ------------- Evolutions (2) 1000 Regions Visited (10) 2000 Robots Destroyed (91) 455 Value Destroyed (3104) 3104 Prototype IDs (33) 660 Alien Tech Used (0) 0 Bonus (1793) 1793 TOTAL SCORE: 9012 Bonus ------- High Alert Combat Kills 331 Follower Combat Kills 699 Entered Garrisons 200 Used RIF Installer 500 Aligned with FarCom 300 Friendly Fire -237 Cogmind --------- Core Integrity 0/550 Matter 42/300 Energy 98/100 System Corruption 2% Temperature Cool (0) Movement Core (50) Location -8/Storage Parts ------- > --- POWER (1) -------- (None) > --- PROPULSION (4) --- Gyrokinetic Inverter > --- UTILITY (4) ------ Advanced Targeting Computer Hacking Suite System Shield System Shield > --- WEAPON (2) ------- (None) > --- INVENTORY (5) ---- Experimental Sensor Array Improved Light Armor Plating Relay Coupler [Grunt] (25) Enhanced Autogun Improved Remote Datajack Peak State ------------ > --- POWER ------------ Makeshift Power Source > --- PROPULSION ------- Improved Airjet Improved Airjet Improved Airjet Improved Airjet > --- UTILITY ---------- Weight Redist. System Experimental Sensor Array Medium Reactive Plating High-powered Tractor Beam > --- WEAPON ----------- Improved Assault Rifle Improved Assault Rifle > --- INVENTORY -------- Makeshift Leg Medium Matter Pod Deploy-a-Sentry Deploy-a-Sentry Deploy-a-Sentry [Rating: 49] Favorites ----------- Power Makeshift Power Source Engine Makeshift Power Source Power Core Light Nuclear Core Propulsion Flight Unit Leg Makeshift Leg Wheel Wheel Hover Unit Improved Airjet Flight Unit Flight Unit Utility Advanced Targeting Computer Device High-powered Tractor Beam Storage Small Storage Unit Processor Advanced Targeting Computer Hackware System Shield Protection Medium Reactive Plating Weapon Improved Assault Rifle Energy Gun Small Laser Energy Cannon Heavy Plasma Cannon Ballistic Gun Improved Assault Rifle Ballistic Cannon Hypervelocity Gauss Cannon Launcher Heavy Rocket Launcher Special Weapon Improved Remote Datajack Build | -11 -10 -10 -9 -9 -9 -8 -8 -8 -8 -8 ------- Run | Jun Mat Min Mat Min Exi Min Mat Gar Mat Sto Slots Evolved 4 | . . . 2 . . . 2 . . . Power . | . . . . . . . . . . . Propulsion 2 | . . . 2 . . . . . . . Utility 2 | . . . . . . . 2 . . . Weapon . | . . . . . . . . . . . Parts Attached 99 | 8 1 6 19 9 1 . 18 23 11 3 Power 8 | 1 . 2 1 2 . . . 2 . . Engine 6 | 1 . 1 1 1 . . . 2 . . Core 2 | . . 1 . 1 . . . . . . Reactor . | . . . . . . . . . . . Propulsion 35 | 2 . 1 9 1 . . 8 11 3 . Treads . | . . . . . . . . . . . Leg 4 | . . . 1 1 . . . 2 . . Wheel 3 | 2 . . 1 . . . . . . . Hover 14 | . . . 4 . . . 5 5 . . Flight 14 | . . 1 3 . . . 3 4 3 . Utility 26 | 1 1 . 2 4 1 . 10 3 4 . Device 13 | . 1 . 2 4 1 . 2 3 . . Storage 1 | 1 . . . . . . . . . . Processor 4 | . . . . . . . 4 . . . Hackware 6 | . . . . . . . 2 . 4 . Protection 2 | . . . . . . . 2 . . . Artifact . | . . . . . . . . . . . Weapon 30 | 4 . 3 7 2 . . . 7 4 3 Energy Gun 1 | 1 . . . . . . . . . . Energy Cannon 1 | . . . . . . . . 1 . . Ballistic Gun 14 | 3 . 3 6 1 . . . . 1 . Ballistic Cannon 9 | . . . . . . . . 3 3 3 Launcher 4 | . . . 1 1 . . . 2 . . Special Weapon 1 | . . . . . . . . 1 . . Impact Weapon . | . . . . . . . . . . . Slashing Weapon . | . . . . . . . . . . . Piercing Weapon . | . . . . . . . . . . . Special Melee Weapon . | . . . . . . . . . . . Unidentified Prototypes 6 | . . . 1 2 . . 2 . 1 . Parts Lost 14 | . . 1 . 2 . . . 6 . 5 Power 3 | . . . . 1 . . . 1 . 1 Propulsion 9 | . . 1 . 1 . . . 4 . 3 Utility 1 | . . . . . . . . 1 . . Weapon 1 | . . . . . . . . . . 1 Highest Loss Streak 5 | . . 1 . 2 . . . 1 . 5 To Critical Strikes . | . . . . . . . . . . . Average Slot Usage (%) 88 | . 98 68 93 86 100 100 99 82 90 61 Engine 9 | . 14 11 11 5 11 11 9 8 9 2 Leg 1 | . . . 1 3 11 11 . . . . Wheel 2 | . 28 17 4 . . . . . . . Hover 15 | . . . 13 1 . . 35 19 9 9 Flight 14 | . . 9 21 33 33 33 . 9 22 6 Device 10 | . 12 14 21 20 22 22 9 4 . . Processor 6 | . . . . . . . 14 9 9 9 Hackware 10 | . . . . . . . 2 18 26 27 Protection 2 | . . . . . . . 8 3 . . Ballistic Gun 11 | . 28 7 19 14 22 22 18 4 1 3 Ballistic Cannon 1 | . . . . . . . . 3 5 3 Naked Turns . | . . . . . . . . . . . Heaviest Build 32 | 13 14 15 11 12 12 12 32 30 18 10 Greatest Support 42 | 20 20 20 18 20 12 12 42 36 12 12 Greatest Overweight (x) 1 | . . . 1 . . . 1 1 1 . Average Overweight (x) . | . . . . . . . . . . . Largest Inventory Capacity 8 | 8 8 8 5 5 5 5 5 5 5 5 Average Capacity 5 | 6 8 5 5 5 5 5 5 5 5 5 Most Carried 5 | 1 4 5 5 5 5 5 5 5 5 5 Average Carried 4 | . 3 4 4 4 4 5 4 4 4 4 Final Capacity 8 | 8 8 5 5 5 5 5 5 5 5 5 Final Carried 5 | 1 4 5 5 4 5 5 5 5 3 5 Class Distribution -------------------- 45% | Hacker-Mutant 28% | Mutant 21% | Scavenger-Mutant 3% | Scavenger-Scout Dominant Class ---------------- Mutant | -10/Materials Mutant | -10/Mines Mutant | -9/Materials Scavenger-Mutant | -9/Mines Scavenger-Mutant | -9/Exiles Scavenger-Scout | -8/Mines Mutant | -8/Materials Hacker-Mutant | -8/Garrison Hacker-Mutant | -8/Materials Hacker-Mutant | -8/Storage Resources | -11 -10 -10 -9 -9 -9 -8 -8 -8 -8 -8 ----------- Run | Jun Mat Min Mat Min Exi Min Mat Gar Mat Sto Matter Collected 2960 | 250 . 164 446 274 . 127 532 1091 26 50 Remotely 1210 | . . . . . . 127 478 605 . . Salvage Created 2689 | . . 177 491 184 . 193 827 744 23 50 Parts 188 | . . 10 41 7 . 7 61 61 . 1 Haulers Intercepted 1 | . . . 1 . . . . . . . Recyclers Shooed 1 | . . . . . . . 1 . . . Parts Field Recycled . | . . . . . . . . . . . Retrieved Matter . | . . . . . . . . . . . Parts Self-Destructed . | . . . . . . . . . . . Prevented . | . . . . . . . . . . . Kills | -11 -10 -10 -9 -9 -9 -8 -8 -8 -8 -8 ------- Run | Jun Mat Min Mat Min Exi Min Mat Gar Mat Sto Combat Hostiles Destroyed 72 | . . 6 12 5 . 4 15 29 . 1 Guns 57 | . . 6 12 2 . 4 15 17 . 1 Cannons 3 | . . . . . . . . 3 . . AOE 11 | . . . . 3 . . . 8 . . Classes Destroyed 14 | . . 2 7 . . 2 1 1 . 1 Worker 2 | . . . 1 . . . 1 . . . Builder 1 | . . . 1 . . . . . . . Tunneler 3 | . . . 2 . . . 1 . . . Hauler 1 | . . . 1 . . . . . . . Recycler 1 | . . . . . . . 1 . . . Operator 2 | . . . 1 . . . 1 . . . Watcher 9 | . . . 4 . . . 4 . 1 . Swarmer 33 | . . 3 6 . . . 7 17 . . Grunt 20 | . . 3 5 5 . 2 3 2 . . Brawler 1 | . . . . . . 1 . . . . Duelist 3 | . . . . . . 1 . 2 . . Sentry 13 | . . . 1 . . . 5 7 . . Specialist 1 | . . . . . . . . 1 . . Hunter 1 | . . . . . . . . . . 1 Best Kill Streak 7 | . . 3 5 2 . 4 5 7 1 1 Combat Bots Only 7 | . . 3 3 2 . 4 5 7 . 1 Max Kills in Single Turn 5 | . . 1 2 1 . 1 2 5 1 1 Gunslinging 1 | . . . . . . . 1 1 . . Exploded 5 | . . . . 1 . . . 5 . . Melee . | . . . . . . . . . . . Uniques/NPCs Destroyed . | . . . . . . . . . . . Combat | -11 -10 -10 -9 -9 -9 -8 -8 -8 -8 -8 -------- Run | Jun Mat Min Mat Min Exi Min Mat Gar Mat Sto Damage Taken 2872 | . 82 200 346 189 . 33 332 1050 199 441 Core 760 | . 8 40 93 67 . . 36 232 63 221 Absorbed by Shields . | . . . . . . . . . . . Core Remaining (%) 80 | 100 . 80 . . . 60 . . . . Volleys Fired 311 | . 4 14 37 19 . 9 52 149 19 8 Largest 2 | . 2 2 2 2 . 2 2 2 2 2 Hottest 100 | . 40 40 50 56 . 46 46 100 86 86 Shots Fired 462 | . 8 25 74 23 . 18 105 174 22 13 Gun 369 | . 8 25 74 17 . 18 105 101 14 7 Cannon 70 | . . . . . . . . 57 7 6 Launcher 21 | . . . . 6 . . . 15 . . Special 2 | . . . . . . . . 1 1 . Kinetic 429 | . 8 25 74 17 . 18 105 148 21 13 Thermal 10 | . . . . . . . . 10 . . Explosive 21 | . . . . 6 . . . 15 . . Electromagnetic . | . . . . . . . . . . . Robot Hit Streak 24 | . 2 8 7 7 . 9 24 13 5 4 Robot Miss Streak 14 | . 6 1 14 2 . 2 3 3 3 1 Penetration Max . | . . . . . . . . . . . Secondary Targets 6 | . . 1 1 . . . 1 3 . . Max Gunslinging Chain 1 | . . 1 1 . . . 1 1 . . Shots Hit Robots 251 | . 2 17 39 15 . 13 69 74 13 9 Core Hits 149 | . . 10 28 12 . 8 38 48 2 3 Critical Kills 6 | . . . . . . . 3 3 . . Critical Parts Destroyed 9 | . . 1 1 . . . . 1 4 2 Critical Strikes 15 | . . 1 1 . . . 3 4 4 2 Meltdown 1 | . . . . . . . . 1 . . Destroy 14 | . . 1 1 . . . 3 3 4 2 Melee Attacks . | . . . . . . . . . . . Impact . | . . . . . . . . . . . Slashing . | . . . . . . . . . . . Piercing . | . . . . . . . . . . . Sneak Attacks . | . . . . . . . . . . . Combat Hostiles . | . . . . . . . . . . . Follow-up Attacks . | . . . . . . . . . . . Damage Inflicted 4789 | . 18 178 782 559 . 196 1126 1590 196 144 Guns 3601 | . 18 178 782 225 . 196 1126 906 99 71 Cannons 405 | . . . . . . . . 242 97 66 Explosions 776 | . . . . 334 . . . 442 . . Melee . | . . . . . . . . . . . Ramming 7 | . . . . . . . . . . 7 Kinetic 3845 | . 18 178 782 225 . 196 1126 987 196 137 Thermal 161 | . . . . . . . . 161 . . Explosive 776 | . . . . 334 . . . 442 . . Electromagnetic . | . . . . . . . . . . . Impact . | . . . . . . . . . . . Slashing . | . . . . . . . . . . . Piercing . | . . . . . . . . . . . Highest Corruption 2 | . . . . . . . 1 1 2 2 Average Corruption 1 | . . . . . . . 1 1 1 2 Corruption Purged . | . . . . . . . . . . . Corruption Blocked . | . . . . . . . . . . . Effects 28 | . . . . . . . 12 11 4 1 Message Errors 7 | . . . . . . . 3 3 1 . Matter Fused 7 | . . . . . . . 4 2 1 . Heat Flow Errors 4 | . . . . . . . 1 2 1 . Energy Discharges 2 | . . . . . . . 2 . . . Parts Rejected 1 | . . . . . . . . 1 . . Data Loss (minor) 2 | . . . . . . . . 1 1 . Data Loss (major) 2 | . . . . . . . 1 1 . . Misfires 1 | . . . . . . . 1 . . . Weapon Failures 2 | . . . . . . . . 1 . 1 Overload Shots . | . . . . . . . . . . . Overflow Damage . | . . . . . . . . . . . Projectiles . | . . . . . . . . . . . Explosions . | . . . . . . . . . . . Melee . | . . . . . . . . . . . Knockbacks 2 | . . . . . . . . 1 1 . Impact . | . . . . . . . . . . . Kinetic 2 | . . . . . . . . 1 1 . Secondary . | . . . . . . . . . . . Self-Inflicted Damage 211 | . . . . 73 . . . 135 . 3 Shots 5 | . . . . 2 . . . 3 . . Rammed 3 | . . . . . . . . . 1 2 Targets Rammed 3 | . . . . . . . . . 1 2 Kicked . | . . . . . . . . . . . Crushed . | . . . . . . . . . . . Highest Temperature 321 | . . 30 12 23 . 21 229 321 279 103 Average Temperature 48 | . . 11 4 10 . 12 32 62 67 46 Received Heat Transfer 720 | . . 99 120 123 . 18 108 207 27 18 Effects 1 | . . . . . . . . . 1 . Interference 1 | . . . . . . . . . 1 . Siege Activations . | . . . . . . . . . . . Robots Corrupted . | . . . . . . . . . . . Combat Hostiles . | . . . . . . . . . . . Parts Fried . | . . . . . . . . . . . Impact Corruptions . | . . . . . . . . . . . Robots Melted 1 | . . . . . . . . 1 . . Combat Hostiles 1 | . . . . . . . . 1 . . Parts Melted 3 | . . . . . . . . 3 . . Heat Transferred 250 | . . . . . . . . 250 . . Parts Sabotaged . | . . . . . . . . . . . Parts Stolen . | . . . . . . . . . . . Parts Stripped . | . . . . . . . . . . . Power Chain Reactions . | . . . . . . . . . . . Missiles Intercepted . | . . . . . . . . . . . Alert | -11 -10 -10 -9 -9 -9 -8 -8 -8 -8 -8 ------- Run | Jun Mat Min Mat Min Exi Min Mat Gar Mat Sto Peak Influence 2260 | . 65 174 243 302 . 135 282 2260 1101 268 Initial 1101 | . . 25 . 52 . . 52 183 1101 248 Average 631 | . 15 118 117 202 . 109 165 1244 679 247 Maximum Alert Level 5 | . . . 1 1 . . 1 5 4 1 Low Security (%) 35 | 100 100 100 68 32 . 100 69 2 . . Level 1 16 | . . . 31 67 . . 30 3 . 100 Level 2 13 | . . . . . . . . 11 80 . Level 3 11 | . . . . . . . . 29 . . Level 4 7 | . . . . . . . . 13 19 . Level 5 15 | . . . . . . . . 38 . . High Security . | . . . . . . . . . . . Max Security . | . . . . . . . . . . . Squads Dispatched 6 | . 1 1 1 . . . 1 . . 2 Investigation 2 | . 1 1 . . . . . . . . Extermination . | . . . . . . . . . . . Reinforcement 4 | . . . 1 . . . 1 . . 2 Assault . | . . . . . . . . . . . Garrison . | . . . . . . . . . . . Intercept . | . . . . . . . . . . . Searches Triggered . | . . . . . . . . . . . Construction Impeded . | . . . . . . . . . . . Haulers Reinforced . | . . . . . . . . . . . Active Scanning Responses . | . . . . . . . . . . . Cargo Convoy Interrupts . | . . . . . . . . . . . Stealth | -11 -10 -10 -9 -9 -9 -8 -8 -8 -8 -8 --------- Run | Jun Mat Min Mat Min Exi Min Mat Gar Mat Sto Distress Signals 3 | . . . 1 . . . 2 . . . Communications Jammed . | . . . . . . . . . . . Distress Signals . | . . . . . . . . . . . Times Spotted 140 | . 7 6 24 6 . 6 20 45 15 11 Peak Tracking Total 9 | . 6 3 4 3 . 3 5 5 8 9 Tactical Retreats 15 | . 1 . . 1 . . 1 9 3 . Traps | -11 -10 -10 -9 -9 -9 -8 -8 -8 -8 -8 ------- Run | Jun Mat Min Mat Min Exi Min Mat Gar Mat Sto Traps Triggered 13 | . 1 . . . . . 1 9 2 . Indirectly . | . . . . . . . . . . . Trap Hack Attempts . | . . . . . . . . . . . Triggered . | . . . . . . . . . . . Disarmed 6 | . . . . . . . 6 . . . Reprogrammed . | . . . . . . . . . . . Reused . | . . . . . . . . . . . Traps Extracted . | . . . . . . . . . . . Installed 3 | . . . . 3 . . . . . . Triggered . | . . . . . . . . . . . Machines | -11 -10 -10 -9 -9 -9 -8 -8 -8 -8 -8 ---------- Run | Jun Mat Min Mat Min Exi Min Mat Gar Mat Sto Machines Disabled 7 | . . . . . . . . 6 . 1 Max in Single Turn 1 | . . . . . . . . 1 . 1 Garrison Relay 4 | . . . . . . . . 4 . . Machines Repaired . | . . . . . . . . . . . Machines Sabotaged . | . . . . . . . . . . . Overloaded Fab Kills . | . . . . . . . . . . . Hacking | -11 -10 -10 -9 -9 -9 -8 -8 -8 -8 -8 --------- Run | Jun Mat Min Mat Min Exi Min Mat Gar Mat Sto Machines Accessed 38 | . 2 2 6 1 5 . 13 2 4 3 Terminals 27 | . 2 1 5 . . . 10 2 4 3 Fabricators . | . . . . . . . . . . . Repair Stations 1 | . . . 1 . . . . . . . Recycling Units . | . . . . . . . . . . . Scanalyzers 2 | . . . . . . . 2 . . . Garrison Access 1 | . . . . . . . 1 . . . Total Hacks 160 | . 6 3 19 1 50 . 39 2 27 13 Successful 102 | . 2 3 9 1 50 . 20 2 14 1 Failed 56 | . 4 . 9 . . . 18 . 13 12 Catastrophic 6 | . . . . . . . 1 . 3 2 Database Lockouts 2 | . . . 1 . . . 1 . . . Manual 29 | . . 1 2 . 1 . 8 . 8 9 Terminals 98 | . 6 2 15 . . . 33 2 27 13 Fabricators . | . . . . . . . . . . . Repair Stations 4 | . . . 4 . . . . . . . Recycling Units . | . . . . . . . . . . . Scanalyzers 4 | . . . . . . . 4 . . . Garrison Access 2 | . . . . . . . 2 . . . Terminal Hacks 96 | . 2 3 8 1 50 . 15 2 14 1 Record 59 | . . 2 3 . 49 . 4 . 1 . Robot Analysis 1 | . . . . . . . . . 1 . Prototype ID Bank 2 | . 1 . . . . . 1 . . . Open Door 2 | . . 1 . 1 . . . . . . Branch Access Points 3 | . . . 1 . . . 1 . 1 . Emergency Access Points 3 | . . . . . . . 1 1 1 . Terminal Index 2 | . . . . . . . 1 . . 1 Recycling Unit Index 1 | . . . 1 . . . . . . . Scanalyzer Index 2 | . . . . . . . 1 . 1 . Alert Level 6 | . . . 1 . . . 1 . 4 . Unreport Threat 3 | . . . . . . . . . 3 . Locate Traps 1 | . . . . . . . 1 . . . Disarm Traps 1 | . . . . . . . 1 . . . Dispatch Records 2 | . . . 1 . . . 1 . . . Hauler Manifests 1 | . . . . . . . 1 . . . Zone Layout 5 | . 1 . 1 . . . 1 . 2 . Security Stations 1 | . . . . . . . . 1 . . EX-Prototype ID Bank 1 | . . . . . 1 . . . . . Fabricator Hacks . | . . . . . . . . . . . Repair Station Hacks 1 | . . . 1 . . . . . . . Refit 1 | . . . 1 . . . . . . . Recycling Unit Hacks . | . . . . . . . . . . . Scanalyzer 4 | . . . . . . . 4 . . . Insert Component 2 | . . . . . . . 2 . . . Analyze 2 | . . . . . . . 2 . . . Garrison Access Hacks 1 | . . . . . . . 1 . . . Unlock Access 1 | . . . . . . . 1 . . . Unauthorized Hacks . | . . . . . . . . . . . Terminals . | . . . . . . . . . . . Fabricators . | . . . . . . . . . . . Repair Stations . | . . . . . . . . . . . Recycling Units . | . . . . . . . . . . . Scanalyzers . | . . . . . . . . . . . Garrison Access . | . . . . . . . . . . . Data Cores Recovered . | . . . . . . . . . . . Used . | . . . . . . . . . . . Hacking Detections 30 | . 2 1 6 . . . 13 1 4 3 Full Trace Events 2 | . 1 . 1 . . . . . . . Feedback Events . | . . . . . . . . . . . Feedback Blocked . | . . . . . . . . . . . Robot Schematics Acquired . | . . . . . . . . . . . Robots Built . | . . . . . . . . . . . Authchips . | . . . . . . . . . . . Time . | . . . . . . . . . . . Total Robot Build Rating . | . . . . . . . . . . . Part Schematics Acquired 2 | . . . . . . . 2 . . . Parts Built . | . . . . . . . . . . . Authchips . | . . . . . . . . . . . Time . | . . . . . . . . . . . Total Part Build Rating . | . . . . . . . . . . . Parts Repaired . | . . . . . . . . . . . Time . | . . . . . . . . . . . Parts Recycled . | . . . . . . . . . . . Recycled Matter . | . . . . . . . . . . . Retrieved Matter . | . . . . . . . . . . . Retrieved Components . | . . . . . . . . . . . Parts Scanalyzed 2 | . . . . . . . 2 . . . Part Schematics Acquired 2 | . . . . . . . 2 . . . Parts Damaged . | . . . . . . . . . . . Bothacking | -11 -10 -10 -9 -9 -9 -8 -8 -8 -8 -8 ------------ Run | Jun Mat Min Mat Min Exi Min Mat Gar Mat Sto Used RIF Installer 1 | . . . . . . . . 1 . . Robots Hacked 1 | . . . . . . . . . 1 . Non-combat . | . . . . . . . . . . . Combat 1 | . . . . . . . . . 1 . Robot Hacks Applied 1 | . . . . . . . . . 1 . formatsys_high 1 | . . . . . . . . . 1 . Relay Couplers Released 12 | . . . . . . . . 12 . . Machine Destruction 12 | . . . . . . . . 12 . . Attached 1 | . . . . . . . . . 1 . Fabnet Peak Effective % . | . . . . . . . . . . . Robots Rewired . | . . . . . . . . . . . Allies Hacked . | . . . . . . . . . . . Hacks Repelled . | . . . . . . . . . . . Allies | -11 -10 -10 -9 -9 -9 -8 -8 -8 -8 -8 -------- Run | Jun Mat Min Mat Min Exi Min Mat Gar Mat Sto Total Allies 7 | . . 1 . 5 . . . . 1 . Largest Group 5 | . . 1 1 5 4 3 1 . 1 . Highest-Rated Group 85 | . . 31 31 85 71 40 16 . 15 . Highest-Rated Ally 31 | . . 31 31 31 31 16 16 . 15 . Total Orders 2 | . . . . 2 . . . . . . EXPLORE 1 | . . . . 1 . . . . . . RETURN 1 | . . . . 1 . . . . . . Ally Attacks 96 | . . . . 19 . 14 16 44 3 . Total Damage 2744 | . . . . 282 . 110 153 2129 70 . Kills 21 | . . . . 3 . 3 2 13 . . Allies Corrupted . | . . . . . . . . . . . Allies Melted . | . . . . . . . . . . . Turrets Deployed 3 | . . . . . . . 1 2 . . Intel | -11 -10 -10 -9 -9 -9 -8 -8 -8 -8 -8 ------- Run | Jun Mat Min Mat Min Exi Min Mat Gar Mat Sto Robot Analysis Total 1 | . . . . . . . . . 1 . Derelict Logs Recovered 4 | . . 2 . 2 . . . . . . Drone Launches 20 | . . . . 20 . . . . . . Drone Recoveries 18 | . . . . 18 . . . . . . Exploration | -11 -10 -10 -9 -9 -9 -8 -8 -8 -8 -8 ------------- Run | Jun Mat Min Mat Min Exi Min Mat Gar Mat Sto Turns Passed 6464 | 38 102 408 854 479 265 235 933 2433 647 70 Spaces Moved 6816 | 33 108 580 657 684 299 428 901 2435 605 86 Core 38 | 3 . . . . . . . . . 35 Treads . | . . . . . . . . . . . Legs 89 | . . . 73 1 . . . 15 . . Wheels 323 | 30 108 154 31 . . . . . . . Hover 4314 | . . . 533 . . . 894 2359 503 25 Flight 2052 | . . 426 20 683 299 428 7 61 102 26 Fastest Speed 29 | 50 80 45 34 34 44 44 34 31 29 29 Average Speed 60 | 77 80 54 100 37 44 44 38 63 82 49 Slowest Speed 165 | 80 80 80 165 140 44 44 102 120 110 70 Overloaded Moves . | . . . . . . . . . . . Propulsion Burnouts . | . . . . . . . . . . . Robots Hopped 39 | . . 4 . 14 . 8 . 10 3 . Cave-ins Triggered . | . . . . . . . . . . . Exploration Rate (%) 59 | 3 32 97 50 100 74 74 65 89 45 28 Regions Visited 10 Branch Regions 5 Pre-discovered Areas 1 | . . . . . 1 . . . . . Known Exits Taken 3 | . . . 1 . . . 1 . 1 . Unknown Exits Taken 6 | 1 1 1 . 1 1 1 . . . . Scrap Searched 4 | . . 2 . 1 . 1 . . . . Spaces Dug . | . . . . . . . . . . . Terrain Destroyed 291 | . . . . 56 . . . 235 . . Melee . | . . . . . . . . . . . Projectile . | . . . . . . . . . . . AOE 291 | . . . . 56 . . . 235 . . Terrain Rammed . | . . . . . . . . . . . Walls Destroyed . | . . . . . . . . . . . Machines Disabled . | . . . . . . . . . . . Actions | -11 -10 -10 -9 -9 -9 -8 -8 -8 -8 -8 --------- Run | Jun Mat Min Mat Min Exi Min Mat Gar Mat Sto Total 8692 | 42 115 649 780 866 432 448 1381 3141 734 104 Wait 1288 | . . 41 39 160 128 20 389 420 91 . Move 6738 | 32 107 571 656 661 298 412 901 2414 600 86 Hop 31 | . . 4 . 8 . 7 . 10 2 . Pick Up 34 | 1 3 4 8 . 3 . 4 8 2 1 Fast Attach 57 | 6 1 2 10 6 . . 13 16 3 . Attach 21 | 1 . 1 6 1 . . 2 5 2 3 Detach 26 | . . 1 5 . . . 4 8 4 4 Swap 21 | 1 . 3 3 2 1 . 3 2 6 . Drop 69 | 1 . 8 16 6 2 . 13 18 5 . Fire 311 | . 4 14 37 19 . 9 52 149 19 8 Melee . | . . . . . . . . . . . Ram 2 | . . . . . . . . . . 2 Kick . | . . . . . . . . . . . Crush . | . . . . . . . . . . . Escape Stasis 91 | . . . . . . . . 91 . . Rewire . | . . . . . . . . . . . Trap 3 | . . . . 3 . . . . . . Miscellaneous . | . . . . . . . . . . . Route ------- -11/Junkyard -10/Materials -10/Mines (discovered 2 exits: *Mat x2) -9/Materials (discovered 2 exits: *Mat / *Min) -9/Mines (discovered 3 exits: *Mat x2 / *Exi) -9/Exiles -8/Mines (discovered 2 exits: *Mat x2) -8/Materials (discovered 3 exits: [*Fac] / Sto / Gar) -8/Garrison (discovered 3 exits: *Mat x3) -8/Materials (discovered 2 exits: [*Fac] / *Sto) -8/Storage History --------- Turn | Location | Event 23 | -11/Junkyard | Discovered new exit (range 15) 39 | -11/Junkyard | Entered Materials 106 | -10/Materials | Discovered new exit (range 15) 141 | -10/Materials | Entered Mines 169 | -10/Mines | Learned Materials trap positions 308 | -10/Mines | Build established: Mutant 335 | -10/Mines | Discovered new exit (range 7) 340 | -10/Mines | Discovered new exit (range 10) 345 | -10/Mines | Received a Rocket Launcher from a helpful Derelict 385 | -10/Mines | Received a Mining Laser from a helpful Derelict 423 | -10/Mines | Learned 2 Materials zone layouts 431 | -10/Mines | Met a Derelict shopkeep closing up shop 549 | -10/Mines | Entered Materials 549 | -9/Materials | Accompanied by 1 ally 549 | -9/Materials | Evolved 2 slots: Propulsion x2 551 | -9/Materials | Loaded intel: 15 trap records 895 | -9/Materials | Discovered new exit (range 12) 966 | -9/Materials | Discovered new exit (range 16) 972 | -9/Materials | Central database locked down 1294 | -9/Materials | Build established: Scavenger-Mutant 1353 | -9/Materials | Identified exit to Mines 1403 | -9/Materials | Entered Mines 1407 | -9/Mines | Learned Materials emergency access door positions 1410 | -9/Mines | Discovered new exit (range 10) 1443 | -9/Mines | Discovered new exit (range 9) 1459 | -9/Mines | Assisted by bots powering up and referring to "LRC-V3" 1471 | -9/Mines | Learned 2 Materials zone layouts 1503 | -9/Mines | Deemed a non-threat by the Exiles lab entrance 1503 | -9/Mines | Discovered new exit (range 5) 1550 | -9/Mines | Found the Drone Emporium 1553 | -9/Mines | Found Prototype Device 1553 | -9/Mines | Identified Sensor Drone Bay 1746 | -9/Mines | Found a hidden stash of uninstalled traps 1770 | -9/Mines | Found a damaged Exp. Sensor Array with a note attached 1772 | -9/Mines | Found Prototype Device 1772 | -9/Mines | Identified Exp. Sensor Array 1882 | -9/Mines | Entered Exiles 1882 | -9/Exiles | Accompanied by 4 allies 1901 | -9/Exiles | Met 8R-AWN 1912 | -9/Exiles | Led the pair of lost Derelicts to a safe place 1917 | -9/Exiles | Met EX-HEX 1928 | -9/Exiles | Met EX-BIN 1934 | -9/Exiles | Aligned with FarCom system 1935 | -9/Exiles | Given EX-Vault access code 1952 | -9/Exiles | Opened EX-Vault 1957 | -9/Exiles | Found Deploy-a-Sentry 1958 | -9/Exiles | Found Deploy-a-Sentry 1960 | -9/Exiles | Found Deploy-a-Sentry 1970 | -9/Exiles | Warned to stay clear of 0b10 Research branches 1976 | -9/Exiles | Exiles lab attacked by MAIN.C 2023 | -9/Exiles | Learned location of Zion (-6) 2035 | -9/Exiles | Discovered new exit (range 14) 2147 | -9/Exiles | Left Exiles lab with Deploy-a-Sentry 2147 | -9/Exiles | Entered Mines 2147 | -8/Mines | Accompanied by 3 allies 2314 | -8/Mines | Discovered new exit (range 6) 2354 | -8/Mines | Discovered new exit (range 6) 2382 | -8/Mines | Entered Materials 2382 | -8/Materials | Accompanied by 1 ally 2382 | -8/Materials | Evolved 2 slots: Utility x2 2604 | -8/Materials | Identified exit to Storage 2685 | -8/Materials | Build established: Mutant 2875 | -8/Materials | DAS Turret deployed 2944 | -8/Materials | Central database locked down 3300 | -8/Materials | Discovered new exit (range 16) 3315 | -8/Materials | Identified exit to Garrison 3315 | -8/Materials | Entered Garrison 3328 | -8/Garrison | Spotted B-75 Beast 3328 | -8/Garrison | Spotted B-75 Beast 3380 | -8/Garrison | Triggered checkpoint 3500 | -8/Garrison | Discovered new exit (range 13) 3535 | -8/Garrison | Build established: Hacker-Mutant 3559 | -8/Garrison | Discovered new exit (range 8) 3566 | -8/Garrison | DAS Turret deployed 3575 | -8/Garrison | DAS Turret deployed 3614 | -8/Garrison | Triggered checkpoint 3683 | -8/Garrison | Triggered checkpoint 3803 | -8/Garrison | Triggered checkpoint 3873 | -8/Garrison | Triggered checkpoint 4015 | -8/Garrison | Discovered new exit (range 9) 4035 | -8/Garrison | Triggered checkpoint 4164 | -8/Garrison | Triggered checkpoint 4341 | -8/Garrison | Allies destroyed B-75 Beast 4718 | -8/Garrison | Installed Relay Interface Framework 4731 | -8/Garrison | Triggered checkpoint 4832 | -8/Garrison | Destroyed 7 combat bots 5127 | -8/Garrison | Garrison Relay disabled 5236 | -8/Garrison | Garrison Relay disabled 5345 | -8/Garrison | Garrison Relay disabled 5390 | -8/Garrison | Triggered checkpoint 5494 | -8/Garrison | Learned Materials security intel 5693 | -8/Garrison | Garrison Relay disabled 5748 | -8/Garrison | Entered Materials 6116 | -8/Materials | Discovered new exit (range 16) 6372 | -8/Materials | Core integrity fell below 50% 6395 | -8/Materials | Entered Storage 6440 | -8/Storage | Core integrity fell below 20% 6465 | -8/Storage | Destroyed by S-10 Pest with Light Assault Rifle Last Messages --------------- 06416_ M-13 Machinist resupplies. 06416_ VTOL Module destroyed. 06417_ Terminal disabled. 06418_ Lgt. Ion Engine destroyed. 06421_ Acquired 50 matter. 06425_ Y-45 Defender suffers critical hit (Destroy). 06425_ Destroyed Beam Rifle. 06430_ M-13 Machinist repairs Flight Unit. 06432_ Acquired Imp. Light Armor Plating. 06434_ Slammed into S-10 Pest. 06435_ M-13 Machinist fits Backup Laser I on Y-45 Defender. 06435_ U-05 Engineer builds a Door. 06445_ System corrupted: Hyp. Gauss Cannon jammed. 06446_ Hyp. Gauss Cannon destroyed. 06452_ O-16 Technician: "IFF HANDSHAKE FAILED. SECURING TERMINAL." 06461_ Connecting with Terminal... 06463_ Slammed into S-10 Pest. 06464_ O-16 Technician uses terminal to summon reinforcements. 06464_ ALERT: Hostiles spotted, dispatching reinforcements to Terminal S007. 06464_ O-16 Technician locks terminal. Map ----- +----------------------------------------------------+ | ????????????# # =%#??????????????????????? | | ????????????# # ^#??????????????????????? | | ???????????## ###"T ###/#??????????????????????? | | ???????????# ######## ###????????????????????? | | ???????????# ???????????????????? | | ???????????# T ???????????????????? | | ???????????# ???????????????????? | | ???????????# ########T####???????????????????? | | ??????????####/#####?????????????????????????????? | | ??????????# #?????????????????????????????? | | ??????????# #?????????????????????????????? | | ??????????# """" #?????????????????????????????? | | ??????????# "????###########???????????????????? | | ??????????# g"?????Y #???????????????????? | | ??????????# "?????# """ #???????????????????? | | ??????????# "?????# """ #???????????????????? | | ??????????# """" ## """ #???????????????????? | | ??????????# g #" """ #???????????????????? | | ??????????#+########T """ #???????????????????? | | ??????????#g#??????#" #???????????????????? | | ??????????# #??????## #???????????????????? | | ??????????# #???????# #??????w????????????? | | ?????"""??# #############/######?????????????????? | | ?# """ # ss #####u#???????????? | | ?# + a s #????????? | | ?? """ # @ ########??????????? | | ?? ? """ ?###+#+#########r######?????????????????? | | ???? """?????? ??????? ??????????????w???????? | | ???? ???????? ??????? ??????????????????????? | | ????#???????? ????? ?????????????????????? | | ????????????? ????? ?????????????????????? | | ???????????? ??? ????????????????????? | | ???????????? ??? ?g??????????????????? | | ???????????# #? ???????????????????? | | ???????????# #?#########??g????????????????? | | ???????????# #?????????????????????????????? | | ???????????# #?????????????????????????????? | | ???????????# #?????????????????????????????? | | ???????????#########?????????????????????????????? | | ?????????????????????????????????????????????????? | | ?????????????????????????????????????????????????? | | ?????????????????????????????????????????????????? | | ?????????????????????????????????????????????????? | | ?????????????????????????????????????????????????? | | ?????????????????????????????????????????????????? | | ?????????????????????????????????????????????????? | | ?????????????????????????????????????????????????? | | ?????????????????????????????????????????????????? | | ?????????????????????????????????????????????????? | | ?????????????????????????????????????????????????? | +----------------------------------------------------+ Best States ------------- Heat Dissipation 45 Energy Generation 15 Energy Capacity 250 Matter Stores 300 Matter Capacity 300 Sight Range 16 Robot Scan Range 20 Terrain Scan Range 16 Terrain Scan Density 10 Additional Mass Support 6 Armor Coverage 225 Resistance: KI 30 Evasion (%) 64 Targeting Accuracy 16 Offensive Hacking 10 Defensive Hacking 20 Relay Coupler Types 1 Relay Coupler Value 7 Item Schematics ----------------- System Shield | -8/Materials | Scanalyzed Hacking Suite | -8/Materials | Scanalyzed Robot Schematics ------------------ None Fabricated ------------ Nothing Alien Tech Used ----------------- None Achievements -------------- Dramatic Entrance Challenges ------------ None Game ------ Seed SubatomicLaserCloak Manual? 0 Play Time 01:50:28 Cumulative 30.3 hours Start 2023.12.16 @ 22:49:33 End 2023.12.17 @ 00:43:32 Sessions 1 Manual Loads 0 Difficulty Rogue Special Mode None Game No. 17 Rogue 17 Adventurer 0 Explorer 0 Win Type - Total 0 Types 0/0/0/0/0/0/0/0/0 Lore% 22 Gallery% 31 Achievement% 30 Wizard Run 0 Options --------- ASCII 0 Keyboard 1 Movement Arrows Keybinds 0 Fullscreen 1 Font 12/Proggy Map View 83x54 Tactical HUD 1 Map Filters NONE Filters NONE Steam 0 RUN: b1a7d476-8334-4daa-8754-2ad29e8247d2